Cogmind - Beta 17 @@@ ROGUE MODE // 2026.07.01 @ 21:03:41 Player: mecharm Result: Destroyed by Autobeam Turret with Autobeam Performance ------------- Evolutions (0) 0 Regions Visited (2) 400 Robots Destroyed (13) 65 Value Destroyed (299) 299 Prototype IDs (4) 80 Alien Tech Used (0) 0 Bonus (5100) 5100 TOTAL SCORE: 5944 Bonus ------- Prayed to X0-1V1 5000 Major X0-1V1 Interference 100 Cogmind --------- Core Integrity 0/150 Matter 140/300 Energy 1176/1180 System Corruption 0% Temperature Cool (8) Movement Walking (190) Ox1 Location -10/Subcaves Parts ------- > --- POWER (1) -------- Cooled Ion Engine > --- PROPULSION (2) --- Aluminum Leg Aluminum Leg > --- UTILITY (2) ------ Small Storage Unit X0-1V1's Piety Tracker > --- WEAPON (2) ------- Subdweller Machine Gun Makeshift Axe > --- INVENTORY (9) ---- Heat Sink Subdweller Optics ECM Suite Utility Shielding Medium Laser Light Assault Rifle Battle Cannon Scrap Shield Fragment (46) Peak State ------------ > --- POWER ------------ Cooled Ion Engine > --- PROPULSION ------- Aluminum Leg Aluminum Leg > --- UTILITY ---------- Small Storage Unit X0-1V1's Piety Tracker > --- WEAPON ----------- Subdweller Machine Gun Makeshift Axe > --- INVENTORY -------- Light Ion Engine Heat Sink Subdweller Optics ECM Suite Utility Shielding Medium Laser Light Assault Rifle Battle Cannon Scrap Shield Fragment [Rating: 26] Favorites ----------- Power Light Ion Engine Engine Light Ion Engine Propulsion Aluminum Leg Leg Aluminum Leg Hover Unit Hover Unit Utility Small Storage Unit Device ECM Suite Storage Small Storage Unit Processor Signal Interpreter Weapon Assault Rifle Energy Gun Medium Laser Ballistic Gun Assault Rifle Slashing Weapon Makeshift Axe Build | -11 -10 -10 ------- Run | Yrd Mat Sub Slots Evolved . | . . . Power . | . . . Propulsion . | . . . Utility . | . . . Weapon . | . . . Parts Attached 22 | 6 11 5 Power 4 | 1 2 1 Engine 4 | 1 2 1 Core . | . . . Reactor . | . . . Propulsion 7 | 2 4 1 Treads . | . . . Leg 5 | 2 2 1 Wheel . | . . . Hover 2 | . 2 . Flight . | . . . Utility 5 | 1 3 1 Device 3 | . 2 1 Storage 1 | 1 . . Processor 1 | . 1 . Hackware . | . . . Protection . | . . . Artifact . | . . . Weapon 6 | 2 2 2 Energy Gun 1 | . 1 . Energy Cannon . | . . . Ballistic Gun 4 | 2 1 1 Ballistic Cannon . | . . . Launcher . | . . . Special Weapon . | . . . Impact Weapon . | . . . Slashing Weapon 1 | . . 1 Piercing Weapon . | . . . Special Melee Weapon . | . . . Unidentified Prototypes 1 | . . 1 Parts Lost 2 | . 2 . Power 1 | . 1 . Propulsion 1 | . 1 . Utility . | . . . Weapon . | . . . Highest Loss Streak 2 | . 2 . To Critical Strikes . | . . . Average Backups 6 | 2 6 6 Power . | . 1 . Propulsion 1 | . 2 . Utility 2 | . 1 3 Weapon 2 | 1 1 2 Tool/Special . | . . . Unused Backups 7 | . 2 5 Power . | . . . Propulsion 2 | . 2 . Utility 3 | . . 3 Weapon 2 | . . 2 Tool/Special . | . . . Average Slot Usage (%) 98 | . 97 100 Engine 13 | . 13 14 Leg 23 | . 19 28 Hover 4 | . 8 . Device 13 | . 12 14 Storage 14 | . 14 14 Energy Gun 2 | . 2 3 Ballistic Gun 20 | . 25 14 Slashing Weapon 4 | . . 10 Peak Build Rating 26 | 6 8 26 Average Rating 12 | 4 6 20 On Entrance 4 | . 6 8 Avg Prop Armor Cover (%) . | . . . Naked Turns . | . . . Heaviest Build 21 | 12 16 21 Greatest Support 20 | 20 20 20 Greatest Overweight (x) 2 | 1 2 1 Average Overweight (x) . | . . . Largest Inventory Capacity 9 | 8 8 9 Average Capacity 8 | 6 8 8 Most Carried 9 | 5 8 9 Average Carried 6 | 2 6 8 Final Capacity 9 | 8 8 9 Final Carried 8 | 2 7 8 Class Distribution -------------------- 100% | Mutant Dominant Class ---------------- Mutant | -10/Materials Mutant | -10/Subcaves Resources | -11 -10 -10 ----------- Run | Yrd Mat Sub Matter Collected 610 | 128 283 199 Remotely 231 | . 231 . Salvage Created 360 | . 294 66 Parts 28 | . 21 7 Haulers Intercepted . | . . . Recyclers Shooed 1 | . 1 . Parts Field Recycled . | . . . Retrieved Matter . | . . . Parts Self-Destructed 8 | . . 8 Prevented . | . . . Parts Restored . | . . . Kills | -11 -10 -10 ------- Run | Yrd Mat Sub Combat Hostiles Destroyed 13 | . 11 2 Guns 13 | . 11 2 Classes Destroyed 3 | . 2 1 Swarmer 7 | . 7 . Grunt 4 | . 4 . Subdweller 2 | . . 2 Best Kill Streak 3 | . 3 2 Combat Bots Only 3 | . 3 2 Max Kills in Single Turn 1 | . 1 1 Gunslinging . | . . . Exploded . | . . . Melee . | . . . Uniques/NPCs Destroyed . | . . . Combat | -11 -10 -10 -------- Run | Yrd Mat Sub Hostile Shots Fired 157 | . 86 71 Missed 53 | . 24 29 Hits 104 | . 62 42 Projectile 104 | . 62 42 Critical Strikes 1 | . 1 . Damage Taken 1198 | . 778 420 Core 279 | . 171 108 Absorbed by Shields . | . . . Regen/Repaired (Parts) 99 | . 99 . Core Remaining (%) 100 | 100 . . Volleys Fired 60 | . 46 14 Largest 2 | . 2 1 Hottest 70 | . 70 50 Shots Fired 83 | . 69 14 Gun 83 | . 69 14 Cannon . | . . . Launcher . | . . . Special . | . . . Kinetic 64 | . 61 3 Thermal 19 | . 8 11 Explosive . | . . . Electromagnetic . | . . . Robot Hit Streak 7 | . 7 7 Robot Miss Streak 5 | . 5 2 Penetration Max . | . . . Secondary Targets 1 | . 1 . Max Gunslinging Chain 1 | . 1 . Shots Hit Robots 51 | . 40 11 Core Hits 21 | . 16 5 Critical Kills . | . . . Critical Parts Destroyed . | . . . Critical Strikes . | . . . Melee Attacks . | . . . Impact . | . . . Slashing . | . . . Piercing . | . . . Sneak Attacks . | . . . Combat Hostiles . | . . . Follow-up Attacks . | . . . Damage Inflicted 682 | . 539 143 Guns 667 | . 524 143 Cannons . | . . . Explosions . | . . . Melee . | . . . Ramming 15 | . 15 . Kinetic 464 | . 446 18 Thermal 203 | . 78 125 Explosive . | . . . Electromagnetic . | . . . Impact . | . . . Slashing . | . . . Piercing . | . . . Highest Corruption . | . . . Average Corruption . | . . . Corruption Purged . | . . . Corruption Blocked . | . . . Overload Shots . | . . . Overflow Damage . | . . . Projectiles . | . . . Explosions . | . . . Melee . | . . . Knockbacks . | . . . Impact . | . . . Kinetic . | . . . Secondary . | . . . Self-Inflicted Damage . | . . . Shots . | . . . Rammed . | . . . Targets Rammed 3 | . 3 . Kicked 3 | . 3 . Crushed . | . . . Highest Temperature 78 | . 78 . Average Temperature 21 | . 21 . Received Heat Transfer 363 | . 171 192 Siege Activations . | . . . Martial Activations . | . . . Shielding Activations . | . . . Robots Disrupted . | . . . Combat Hostiles . | . . . Robots Corrupted . | . . . Combat Hostiles . | . . . Parts Fried . | . . . Impact Corruptions . | . . . Robots Melted . | . . . Combat Hostiles . | . . . Parts Melted . | . . . Heat Transferred 592 | . 222 370 Parts Sabotaged . | . . . Parts Stolen . | . . . Parts Stripped . | . . . Power Chain Reactions . | . . . Alert | -11 -10 -10 ------- Run | Yrd Mat Sub Maximum Alert Level . | . . . Low Security (%) 100 | 100 100 . Level 1 . | . . . Level 2 . | . . . Level 3 . | . . . Level 4 . | . . . Level 5 . | . . . High Security . | . . . Max Security . | . . . Peak Influence 80 | . 80 . Initial . | . . . Average 20 | . 21 . Influence Increases 334 | . 274 60 Destroy 0b10 Robot/C 220 | . 220 . Destroy Leader 40 | . 40 . Successful Hack 14 | . 14 . Lose Combat Pursuer 60 | . . 60 Influence Decreases 286 | . 246 40 Entered New Map 14 | . . 14 Time Decay 262 | . 236 26 Lost Part 10 | . 10 . Squads Dispatched 1 | . 1 . Investigation . | . . . Extermination . | . . . Reinforcement 1 | . 1 . Assault . | . . . Garrison . | . . . Intercept . | . . . Searches Triggered . | . . . Construction Impeded . | . . . Haulers Reinforced . | . . . Active Scanning Responses . | . . . Cargo Convoy Interrupts . | . . . Stealth | -11 -10 -10 --------- Run | Yrd Mat Sub Distress Signals 1 | . 1 . Communications Jammed . | . . . Distress Signals . | . . . Times Spotted 30 | . 21 9 Peak Tracking Total 4 | . 4 3 Tactical Retreats 3 | . 1 2 ECM-based Alert Blocks 1 | . 1 . Traps | -11 -10 -10 ------- Run | Yrd Mat Sub Traps Triggered 1 | . . 1 Indirectly . | . . . Trap Hack Attempts . | . . . Triggered . | . . . Disarmed . | . . . Reprogrammed . | . . . Reused . | . . . Traps Extracted . | . . . Installed . | . . . Triggered . | . . . Machines | -11 -10 -10 ---------- Run | Yrd Mat Sub Machines Disabled 1 | . . 1 Max in Single Turn 1 | . . 1 Machines Repaired . | . . . Machines Dismantled . | . . . Machines Sabotaged . | . . . Overloaded Fab Kills . | . . . Hacking | -11 -10 -10 --------- Run | Yrd Mat Sub Machines Accessed 4 | . 4 . Terminals 3 | . 3 . Fabricators . | . . . Repair Stations 1 | . 1 . Recycling Units . | . . . Scanalyzers . | . . . Garrison Access . | . . . Total Hacks 12 | . 12 . Successful 7 | . 7 . Failed 5 | . 5 . Catastrophic . | . . . Database Lockouts . | . . . Manual 2 | . 2 . Terminals 8 | . 8 . Fabricators . | . . . Repair Stations 4 | . 4 . Recycling Units . | . . . Scanalyzers . | . . . Garrison Access . | . . . Terminal Hacks 3 | . 3 . Record 1 | . 1 . Prototype ID Bank 1 | . 1 . Locate Traps 1 | . 1 . Fabricator Hacks . | . . . Repair Station Hacks 4 | . 4 . Scan Component 2 | . 2 . Repair 2 | . 2 . Recycling Unit Hacks . | . . . Scanalyzer . | . . . Garrison Access Hacks . | . . . Unauthorized Hacks . | . . . Terminals . | . . . Fabricators . | . . . Repair Stations . | . . . Recycling Units . | . . . Scanalyzers . | . . . Garrison Access . | . . . Data Cores Recovered . | . . . Used . | . . . Hacking Detections 2 | . 2 . Full Trace Events . | . . . Feedback Events . | . . . Feedback Blocked . | . . . Robot Schematics Acquired . | . . . Robots Built . | . . . Authchips . | . . . Time . | . . . Total Robot Build Rating . | . . . Part Schematics Acquired . | . . . Parts Built . | . . . Authchips . | . . . Time . | . . . Total Part Build Rating . | . . . Part Studies Acquired . | . . . Parts Repaired 2 | . 2 . Time 52 | . 52 . Parts Recycled . | . . . Recycled Matter . | . . . Retrieved Matter . | . . . Retrieved Components . | . . . Parts Scanalyzed . | . . . Part Schematics Acquired . | . . . Parts Damaged . | . . . Bothacking | -11 -10 -10 ------------ Run | Yrd Mat Sub Used RIF Installer . | . . . Robots Hacked . | . . . Non-combat . | . . . Combat . | . . . Robot Hacks Applied . | . . . Relay Couplers Released . | . . . Fabnet Peak Effective % . | . . . Robots Rewired . | . . . Allies Hacked . | . . . Hacks Repelled . | . . . Allies | -11 -10 -10 -------- Run | Yrd Mat Sub Total Allies . | . . . Largest Group . | . . . Highest-Rated Group . | . . . Highest-Rated Ally . | . . . Total Orders . | . . . Ally Attacks . | . . . Total Damage . | . . . Kills . | . . . Allies Corrupted . | . . . Allies Melted . | . . . X0-1V1 Amusement Gains 10 | . 10 . Good Acts 5 | . . 5 Bad Acts 3 | . . 3 Intel | -11 -10 -10 ------- Run | Yrd Mat Sub Active Infowar (turns) 852 | . 523 329 ECM 852 | . 523 329 Robot Analysis Total . | . . . Derelict Logs Recovered . | . . . Drone Launches . | . . . Drone Recoveries . | . . . Exploration | -11 -10 -10 ------------- Run | Yrd Mat Sub Turns Passed 2082 | 57 1079 946 Spaces Moved 1318 | 33 714 571 Core 13 | 13 . . Treads . | . . . Legs 1086 | 20 495 571 Wheels . | . . . Hover 219 | . 219 . Flight . | . . . Fastest Speed 50 | 50 116 120 Average Speed 135 | 96 118 157 Slowest Speed 190 | 120 180 190 Overloaded Moves . | . . . Propulsion Burnouts . | . . . Robots Hopped . | . . . Potential Cave-ins . | . . . Cave-ins Triggered . | . . . Exploration Rate (%) 45 | 3 99 35 Regions Visited 2 Branch Regions 1 Pre-discovered Areas . | . . . Known Exits Taken . | . . . Unknown Exits Taken 2 | 1 1 . Scrap Searched . | . . . Spaces Dug . | . . . Terrain Destroyed . | . . . Melee . | . . . Projectile . | . . . AOE . | . . . Terrain Rammed . | . . . Walls Destroyed . | . . . Machines Disabled . | . . . Actions | -11 -10 -10 --------- Run | Yrd Mat Sub Total 1535 | 56 874 605 Wait 91 | 13 73 5 Move 1316 | 32 713 571 Hop . | . . . Pick Up 28 | 5 18 5 Fast Attach 4 | 3 . 1 Attach 10 | 3 7 . Detach . | . . . Swap 11 | . 7 4 Drop 12 | . 7 5 Fire 60 | . 46 14 Melee . | . . . Ram . | . . . Kick 3 | . 3 . Crush . | . . . Escape Stasis . | . . . Rewire . | . . . Trap . | . . . Miscellaneous . | . . . Route ------- -11/Scrapyard -10/Materials (discovered 5 exits: *Mat x3 / [*Min] / [*Sub]) -10/Subcaves (discovered 2 exits: [*Mat] / [*Rec]) History --------- Turn | Location | Event 14 | -11/Scrapyard | Discovered new exit (range 15) 58 | -11/Scrapyard | Entered Materials 317 | -10/Materials | Build established: Mutant 339 | -10/Materials | Discovered new exit (range 9) 376 | -10/Materials | Repaired Aluminum Leg 404 | -10/Materials | Repaired Assault Rifle 673 | -10/Materials | Discovered new exit (range 14) 731 | -10/Materials | Identified exit to Materials 829 | -10/Materials | Core integrity fell below 50% 884 | -10/Materials | Discovered exit to Materials (range 13) 1068 | -10/Materials | Discovered new exit (range 7) 1121 | -10/Materials | Discovered new exit (range 10) 1131 | -10/Materials | Prayed at D.C.S.S. Altar Unit 1137 | -10/Materials | Entered Subcaves 1138 | -10/Subcaves | Approached by a straggling Scientist 1305 | -10/Subcaves | Inventory capacity permanently improved by X0-1V1 (+1; -100 max core) 1321 | -10/Subcaves | X0-1V1 activates XOMVISION 1330 | -10/Subcaves | Core integrity restored by X0-1V1 (+28) 1620 | -10/Subcaves | Discovered new exit (range 9) 2069 | -10/Subcaves | Discovered new exit (range 12) 2074 | -10/Subcaves | Core integrity fell below 20% 2083 | -10/Subcaves | Destroyed by Autobeam Turret with Autobeam Last Messages --------------- 01597_ QB-GMO(c) triggered Piercing Trap. 01597_ Spikes shoot up from the floor. 01620_ EXIT=FOUND 01623_ QB-GMO(c) triggered Piercing Trap. 01623_ Spikes shoot up from the floor. 01623_ QB-GMO(c) suffers critical hit (Impale). 01623_ QB-GMO(c) destroyed. 01853_ Matter capacity returns to normal. 01973_ Subatomizers dissect the Wheel. 01992_ 8J-RWX(u) tweaks Twisted Machinery. 01995_ Subatomizers dissect the Wheel. 02066_ 5H-LOH(R) affixes Scrap Shield Fragment to Scrap Shield. 02067_ 5H-LOH(R) destroyed. 02067_ X0-1V1: "So many nails, never enough hammers..." (-14% ranged accuracy) 02069_ EXIT=FOUND 02073_ Machine disabled. 02083_ Acquired 21 matter. 02083_ X0-1V1 guffaws! Map ----- +----------------------------------------------------+ | ?????????????????????????????????????????????????? | | ?????????????????????????????????????????????????? | | ?????????????????????????????????????????????????? | | ?????????????????????????????????????????????????? | | ?????????????????????????????????????????????????? | | ?????????????????????????????????????????????????? | | ?????????????????????????????????????????????????? | | ?????????????????????????????????????????????????? | | ?????????????????????????????????????????????????? | | ??????????????????????????????????????????????###? | | ?????????????????????????????????????????????## #? | | ????????????????????????????????????????????## ## | | ???????????????????????????????????????????## ^# | | ??????????????????????????????????????????## | | ???????????????????????? ????????????????# | | ???????????????????????? ?????????????????# | | ???????????????????????? ?????????????????# | | ???????????????????????"""#????????????????# | | ????????????????????????""#????????????????#^ | | ???????????????????????? ##????????######## =%= | | ???????????????????????? ##??????## | | ?????????????????###????# ""#????### | | ?????????????????#""" ??# ""#????# | | ?????????????????#" ?# ""###??# ^ | | ?????????????????#" # """ #??## ## | | ?????????????????#""t %%@"""###### ### ## | | ????????????????#< [! #?# ## | | ????????????????##""t %% "" #?# #? | | ?????????????????#" # "" # ##?#^ #? | | ?????????????????# ## ##### #??# # | | ?????????????????#""" ??####???## #??# | | ?????????????????######??????????# #??# | | ?????????????????????????????????# ##??# | | ????????????????????????????????? #???# | | ????????????????????????????????# #??#### ## | | ????????????????????????????????# #????##### | | ????????????????????????????????# ##????????? | | ????????????????????????????????# ##?????????? | | ????????????????????????????????## #??????????? | | ?????????????????????????????????# ####??????????? | | ??????????????????????????????????#??????????????? | | ?????????????????????????????????????????????????? | | ?????????????????????????????????????????????????? | | ?????????????????????????????????????????????????? | | ?????????????????????????????????????????????????? | | ?????????????????????????????????????????????????? | | ?????????????????????????????????????????????????? | | ?????????????????????????????????????????????????? | | ?????????????????????????????????????????????????? | | ?????????????????????????????????????????????????? | +----------------------------------------------------+ Best States ------------- Heat Dissipation 25 Energy Generation 14 Energy Capacity 1180 Matter Stores 300 Matter Capacity 300 Sight Range 16 Terrain Scan Density 10 ECM Strength 1 Evasion (%) 55 Item Schematics ----------------- None Robot Schematics ------------------ None Fabricated ------------ Nothing Repaired ---------- Aluminum Leg | 51% | -10/Materials Assault Rifle | 45% | -10/Materials Studied --------- None Alien Tech Used ----------------- None Achievements -------------- Chaos Is Inevitable Use The Force Challenges ------------ None Game ------ Seed PiercingDeepMachine Manual? 0 Play Time 00:34:17 Cumulative 16.4 hours Start 2026.07.01 @ 20:30:26 End 2026.07.01 @ 21:03:41 Sessions 1 Manual Loads 0 Difficulty Rogue Special Mode None Game No. 12 Rogue 12 Adventurer 0 Explorer 0 Win Type - Total 0 Types 0/0/0/0/0/0/0/0/0/0 Lore% 10 Gallery% 14 Achievement% 13 Wizard Run 0 Options --------- Layout 1 ASCII 0 Keyboard 0 Movement Mouse Keybinds 0 Fullscreen 1 Font 24/Smallcaps Map View 50x35 Zoom Use 1% Tactical HUD 1 Map Filters NONE Filters NONE Steam 1 RUN: cedb6d88-6454-4c5d-827a-5b90792ba666